bitfinex/quotes_ETHUSD_20250404
["timestamp","ask_amount","ask_price","bid_price","bid_amount"]
[1743751130224,6.06612,1812.9,1812.7,11.611]
[1743751130469,0.55,1812.9,1812.7,11.611]
[1743751130618,0.55,1812.9,1812.7,17.12759]
[1743751131322,5.51632,1812.8,1812.7,6.16]
[1743751131526,6.06632,1812.8,1812.7,6.16]
[1743751131745,10.47617382,1812.8,1812.7,6.16]
[1743751133268,5.51743,1812.5,1812.3,6.16]
[1743751133568,6.06754,1812.4,1812.3,6.16]
[1743751134460,11.58367823,1812.4,1812.3,6.16]
[1743751134764,11.58367823,1812.4,1812.3,6.9608]
[1743751134765,6.06754,1812.4,1812.3,6.9608]
[1743751134966,0.55,1812.4,1812.3,6.9608]
[1743751135265,11.0342,1812.6,1812.3,6.9608]
[1743751135560,5.51697,1812.6,1812.3,7.65688]
[1743751136273,3.0,1812.7,1812.3,6.9608]
[1743751136274,5.51728,1812.5,1812.3,6.9608]
[1743751136771,6.06754,1812.4,1812.3,6.9608]
[1743751136955,0.55,1812.4,1812.3,6.9608]
[1743751137139,5.51694,1812.6,1812.3,6.9608]
[1743751137345,11.03407,1812.6,1812.3,7.01597268]
[1743751137780,3.55,1812.7,1812.3,7.01597271]
[1743751137944,5.51736,1812.5,1812.3,6.16]
[1743751138276,3.55,1812.6,1812.3,6.16]
[1743751138571,0.55,1812.8,1812.4,0.8008]
[1743751138764,5.51714,1812.6,1812.4,0.8008]
[1743751139565,5.51724,1812.5,1812.4,0.8008]
[1743751140067,5.51714,1812.6,1812.3,6.9608]
[1743751140266,0.55,1812.6,1812.4,6.16]
[1743751140473,6.06724,1812.5,1812.4,6.16]
[1743751140668,6.06724,1812.5,1812.2,6.16]
[1743751140669,9.06785,1812.3,1812.2,6.16]
[1743751142748,5.51726,1812.5,1812.2,6.16]
[1743751142946,5.51703,1812.6,1812.3,6.9608]
[1743751143380,5.51703,1812.6,1812.3,12.47854]
[1743751143680,5.51703,1812.6,1812.3,6.9608]
[1743751143882,5.51736,1812.5,1812.3,6.9608]
[1743751144287,6.06754,1812.4,1812.3,6.16]
[1743751144580,8.58367823,1812.4,1812.3,6.16]
[1743751144749,6.06815,1812.2,1812.1,0.1]
[1743751146480,6.50235,1812.2,1812.1,0.1]
[1743751147286,12.01848823,1812.2,1812.1,0.1]
[1743751147499,13.77213505,1812.2,1812.1,0.1]
[1743751150267,11.25599682,1812.2,1812.1,0.1]
[1743751151182,11.66135188,1812.2,1812.1,0.1]
[1743751151898,11.25599682,1812.2,1812.1,0.1]
[1743751152566,10.82179682,1812.2,1812.1,0.1]
[1743751154062,11.25599682,1812.2,1812.1,0.1]
[1743751154469,11.6624864,1812.2,1812.1,0.1]
[1743751155806,11.25599682,1812.2,1812.1,0.1]
[1743751156102,10.82179682,1812.2,1812.1,0.1]
[1743751156508,0.55,1812.2,1812.1,0.1]
[1743751156715,9.06815,1812.2,1812.1,0.1]
[1743751156930,8.51815,1812.2,1812.1,0.1]
[1743751157275,9.06815,1812.2,1812.1,0.1]
[1743751158117,11.03471,1812.5,1812.1,12.58831]
[1743751158279,5.51727,1812.5,1812.3,0.81]
[1743751158479,11.03289,1812.8,1812.4,6.16]
[1743751158680,5.51612,1812.9,1812.6,0.81]
[1743751158891,5.51632,1812.8,1812.7,6.16]
[1743751159508,10.169564,1812.8,1812.7,6.16]
[1743751159715,9.619564,1812.8,1812.7,6.16]
[1743751160214,10.169564,1812.8,1812.7,6.16]
[1743751160401,6.06632,1812.8,1812.7,6.16]
[1743751160591,9.06632,1812.8,1812.7,6.16]
[1743751161074,5.51724,1812.5,1812.4,11.639]
[1743751161411,9.06724,1812.5,1812.4,6.16]
[1743751162306,9.06724,1812.5,1812.1,0.1]
[1743751162535,5.51815,1812.2,1812.1,0.1]
[1743751165382,8.51815,1812.2,1812.1,0.1]
[1743751165582,9.06815,1812.2,1812.1,0.1]
[1743751165806,9.50235,1812.2,1812.1,0.1]
[1743751166413,12.01848823,1812.2,1812.1,0.1]
[1743751166607,13.77213405,1812.2,1812.1,0.1]
[1743751167794,11.25599582,1812.2,1812.1,0.1]
[1743751167995,10.82179582,1812.2,1812.1,0.1]
[1743751170611,13.33793405,1812.2,1812.1,0.1]
[1743751174032,13.33793405,1812.2,1812.1,1e-05]
[1743751174203,13.77213405,1812.2,1812.1,1e-05]
[1743751174800,17.07913405,1812.2,1812.1,1e-05]
[1743751175312,6.07059,1811.4,1811.3,6.9631]
[1743751175512,6.07059,1811.4,1811.3,6.16]
[1743751175712,9.07059,1811.4,1811.3,6.16]
[1743751175932,13.04582823,1811.4,1811.3,6.16]
[1743751177437,9.07059,1811.4,1811.3,6.16]
[1743751177734,0.55,1811.5,1811.3,6.16]
[1743751177931,3.0,1811.5,1811.4,0.8031]
[1743751178131,11.04033,1811.6,1811.4,0.8031]
[1743751178338,0.55,1811.5,1811.4,0.8031]
[1743751178726,5.52014,1811.6,1811.4,0.8031]
[1743751178918,11.03959,1811.7,1811.4,2.597395]
[1743751179118,5.51941,1811.8,1811.5,11.68017]
[1743751179502,5.51941,1811.8,1811.6,0.8324]
[1743751180602,0.55,1811.8,1811.6,0.8324]
[1743751180937,5.51967,1811.7,1811.6,0.8324]
[1743751181314,11.58904,1811.8,1811.6,0.8324]
[1743751181510,6.0695,1811.8,1811.6,0.8324]
[1743751181716,11.58905,1811.8,1811.6,0.8324]
[1743751181912,5.51967,1811.7,1811.6,0.8324]
[1743751182419,6.06967,1811.7,1811.6,0.8324]
[1743751183820,0.55,1811.7,1811.6,0.8324]
[1743751184042,6.06967,1811.7,1811.6,0.8324]
[1743751184237,6.06967,1811.7,1811.6,6.9924]
[1743751184238,0.55,1811.7,1811.6,6.9924]
[1743751185628,6.06967,1811.7,1811.6,6.9924]
[1743751185829,0.55,1811.7,1811.6,6.9924]
[1743751186463,6.06967,1811.7,1811.6,6.9924]
[1743751187220,0.55,1811.7,1811.6,6.9924]
[1743751187458,6.06967,1811.7,1811.6,6.16]
[1743751188154,7.228587,1811.7,1811.6,6.16]
[1743751190031,7.228587,1811.7,1811.5,6.16]
[1743751190560,5.51998,1811.6,1811.5,6.16]
[1743751190860,6.06967,1811.7,1811.5,6.16]
[1743751191062,11.58958,1811.7,1811.5,6.16]
[1743751191561,0.55,1811.6,1811.5,6.16]
[1743751192565,6.06998,1811.6,1811.5,6.16]
[1743751193259,10.663145,1811.6,1811.1,6.26]
[1743751193459,6.0712,1811.2,1811.1,6.26]
[1743751193662,5.52072,1811.4,1811.1,6.26]
[1743751194065,6.07091,1811.3,1811.1,6.26]
[1743751195037,11.59199,1811.3,1811.1,6.26]
[1743751195364,6.0712,1811.2,1811.1,6.26]
[1743751195936,0.55,1811.2,1811.1,6.26]
[1743751196142,0.55,1811.3,1811.1,6.26]
[1743751196384,6.07092,1811.3,1811.1,6.26]
[1743751196539,5.5212,1811.2,1811.1,6.26]
[1743751196742,6.0712,1811.2,1811.1,6.26]
[1743751197274,11.04201,1811.3,1811.1,6.26]
[1743751197475,5.52092,1811.3,1811.1,6.26]
[1743751197838,5.5212,1811.2,1811.1,6.26]
[1743751198043,11.04198,1811.3,1811.1,6.26]
[1743751198374,5.5212,1811.2,1811.1,6.26]
[1743751200047,11.04201,1811.3,1811.1,6.26]
[1743751200245,5.52092,1811.3,1811.1,6.26]
[1743751200476,11.04206,1811.3,1811.1,6.26]
[1743751200672,5.52032,1811.5,1811.2,10.93707]
[1743751200877,0.55,1811.4,1811.2,6.1784]
[1743751201072,5.52089,1811.3,1811.2,6.1784]
[1743751201376,3.0,1811.6,1811.2,6.1784]
[1743751201557,3.0,1811.6,1811.4,5.52046]
[1743751201755,3.0,1811.6,1811.3,12.44316]
[1743751202158,3.0,1811.6,1811.3,6.9224]
[1743751202362,5.52059,1811.4,1811.3,6.16]
[1743751202557,6.07059,1811.4,1811.3,6.16]
[1743751202763,9.50479,1811.4,1811.3,6.16]
[1743751204169,9.07059,1811.4,1811.3,6.16]
[1743751205378,11.58672823,1811.4,1811.3,6.16]
[1743751205684,11.58672823,1811.4,1811.1,0.1]
[1743751205685,9.5054,1811.2,1811.1,0.1]
[1743751205975,15.32853823,1811.2,1811.1,0.1]
[1743751207480,9.5054,1811.2,1811.1,0.1]
[1743751207781,9.0712,1811.2,1811.1,0.1]
[1743751208487,8.5212,1811.2,1811.1,6.26]
[1743751208787,5.52073,1811.4,1811.2,0.7613]
[1743751208945,3.0,1811.3,1811.2,0.7613]
[1743751209145,3.0,1811.3,1811.2,6.9213]
[1743751209371,5.52034,1811.5,1811.2,6.9213]
[1743751209654,5.52034,1811.5,1811.2,12.49768578]
[1743751209879,5.52034,1811.5,1811.2,14.31698458]
[1743751210155,3.0,1811.5,1811.4,0.7613]
[1743751210349,8.52028,1811.5,1811.4,0.7613]
[1743751210545,0.55,1811.8,1811.4,0.7613]
[1743751210750,5.52009,1811.6,1811.5,6.16]
[1743751211489,6.87567982,1811.6,1811.5,6.16]
[1743751212195,5.52009,1811.6,1811.5,6.16]
[1743751212395,6.07009,1811.6,1811.5,6.16]
[1743751212559,0.55,1811.6,1811.5,6.16]
[1743751212759,0.55,1811.6,1811.5,6.9213]
[1743751212989,6.06998,1811.6,1811.5,6.9213]
[1743751213493,7.228945,1811.6,1811.5,6.16]
[1743751214896,6.06998,1811.6,1811.5,6.16]
[1743751215387,3.0,1811.6,1811.5,6.16]
[1743751215553,8.51998,1811.6,1811.5,6.9213]
[1743751215982,3.0,1811.6,1811.5,6.9213]
[1743751217092,6.0688,1812.0,1811.5,6.9213]
[1743751217290,0.55,1811.8,1811.5,13.13908987]
[1743751217492,3.0,1811.9,1811.6,12.44111]
[1743751217791,5.51899,1812.0,1811.7,17.16683027]
[1743751217995,5.51898,1812.0,1811.8,0.7613]
[1743751218297,11.03799,1812.0,1811.8,6.9213]
[1743751218491,5.51898,1812.0,1811.8,6.9213]
[1743751218680,11.03795,1812.0,1811.8,6.9213]
[1743751218889,5.51897,1812.0,1811.8,6.9213]
[1743751219077,8.51848,1812.1,1811.8,8.708592]
[1743751219278,0.55,1812.0,1811.8,8.708592]
[1743751219478,6.06876,1812.0,1811.8,8.708592]
[1743751220079,11.58776,1812.0,1811.8,8.708592]
[1743751220274,3.0,1812.1,1811.9,5.51893]
[1743751220474,3.0,1812.1,1811.9,12.50322109]
[1743751220686,3.0,1812.2,1812.0,0.7613]
[1743751220889,5.5179,1812.3,1812.1,11.587]
[1743751221193,6.06815,1812.2,1812.1,11.587]
[1743751222061,6.06815,1812.2,1812.1,6.16]
[1743751224299,13.17709323,1812.2,1812.1,6.16]
[1743751224601,13.17709323,1812.2,1811.9,6.16]
[1743751224602,9.06876,1812.0,1811.9,6.16]
[1743751226591,0.55,1812.2,1811.9,11.67893]
[1743751226907,5.51861,1812.1,1811.9,6.16]
[1743751228304,6.06861,1812.1,1812.0,6.16]
[1743751229016,0.55,1812.1,1812.0,6.16]
[1743751229229,0.55,1812.3,1812.0,6.776]
[1743751229430,6.06803,1812.3,1812.1,6.16]
[1743751229725,11.5861,1812.3,1812.1,6.16]
[1743751230222,0.55,1812.2,1812.1,6.16]
[1743751231326,6.06815,1812.2,1812.1,6.16]
[1743751236541,8.03373823,1812.4,1812.1,6.9123]
[1743751236746,6.06768,1812.4,1812.1,6.9123]
[1743751236938,6.06768,1812.4,1812.1,13.12749817]
[1743751237146,5.51644,1812.8,1812.3,0.7523]
[1743751237325,0.4342,1813.0,1812.2,11.569]
[1743751237326,0.4342,1813.2,1812.8,6.26856]
[1743751237510,3.0,1813.1,1812.8,12.42845]
[1743751238066,3.0,1813.1,1812.8,6.9123]
[1743751238216,5.51602,1812.9,1812.8,6.9123]
[1743751238855,7.169194,1812.9,1812.8,6.16]
[1743751239145,5.51724,1812.5,1812.4,6.9862]
[1743751239345,6.06724,1812.5,1812.4,6.16]
[1743751239907,9.06724,1812.5,1812.4,6.16]
[1743751240217,13.04180823,1812.5,1812.4,6.16]
[1743751241252,6.06815,1812.2,1812.1,6.16]
[1743751241461,0.55,1812.2,1812.1,6.16]
[1743751241630,5.51797,1812.3,1812.1,6.16]
[1743751242142,6.06815,1812.2,1812.1,6.16]
[1743751243150,0.55,1812.2,1812.1,6.16]
[1743751243351,6.06815,1812.2,1812.1,6.16]
[1743751243853,5.5176,1812.4,1812.1,12.50458]
[1743751244029,5.5176,1812.4,1812.2,0.05517985]
[1743751244229,8.51727,1812.5,1812.1,12.50453]
[1743751244431,14.03469,1812.5,1812.2,6.82376889]
[1743751244649,14.03469,1812.5,1812.1,12.50453]
[1743751244844,8.51727,1812.5,1812.1,12.5045]
[1743751245045,3.0,1812.5,1812.2,6.16]
[1743751245229,8.51724,1812.5,1812.3,5.419]
[1743751245426,5.51724,1812.5,1812.3,5.419]
[1743751245952,6.06765,1812.4,1812.2,6.16]
[1743751246158,11.58545,1812.4,1812.2,11.577]
[1743751246361,11.58536,1812.4,1812.2,11.577]
[1743751246654,5.51785,1812.3,1812.2,11.577]
[1743751247156,5.51785,1812.3,1812.2,6.16]
[1743751247355,6.06785,1812.3,1812.2,6.16]
[1743751248522,0.55,1812.2,1812.1,12.4042]
[1743751248751,6.06815,1812.2,1812.1,12.4042]
[1743751249257,6.06815,1812.2,1812.1,6.16]
[1743751249781,7.22675,1812.2,1812.1,6.16]
[1743751249932,7.66095,1812.2,1812.1,6.16]
[1743751250127,7.66095,1812.2,1811.7,6.2402]
[1743751250128,5.51906,1811.9,1811.8,6.16]
[1743751251858,6.06906,1811.9,1811.8,6.16]
[1743751254434,9.50326,1811.9,1811.8,6.16]
[1743751254675,11.005475,1811.9,1811.8,6.16]
[1743751255036,5.52028,1811.5,1811.4,45.89]
[1743751255261,6.07028,1811.5,1811.4,45.89]
[1743751256976,6.07028,1811.5,1811.4,6.16]
[1743751257796,6.07089,1811.3,1811.2,6.16]
[1743751257994,6.0712,1811.2,1811.1,0.1]
[1743751259967,0.55,1811.2,1811.1,0.1]
[1743751260373,5.51998,1811.6,1811.1,0.1]
[1743751260374,5.51961,1811.8,1811.2,6.35332]
[1743751260594,5.52012,1811.6,1811.2,13.017652]
[1743751260802,5.52012,1811.6,1811.3,0.05520206]
[1743751261094,11.03897,1811.8,1811.4,6.35289]
[1743751261299,6.06983,1811.7,1811.4,6.40815818]
[1743751261498,5.51908,1811.9,1811.5,11.73546819]
[1743751261799,5.51947,1811.8,1811.5,12.93705682]
[1743751261993,8.51897,1812.0,1811.7,0.8324]
[1743751262171,8.51893,1812.0,1811.7,0.8324]
[1743751262377,0.55,1811.9,1811.7,0.8324]
[1743751262577,5.51841,1812.2,1811.8,5.51925]
[1743751262796,5.51796,1812.3,1812.0,0.8324]
[1743751262997,5.51815,1812.2,1812.1,6.16]
[1743751263305,8.51815,1812.2,1812.1,6.16]
[1743751263683,8.95235,1812.2,1812.1,6.16]
[1743751263909,10.949381,1812.2,1812.1,6.16]
[1743751264408,5.51906,1811.9,1811.8,5.407]
[1743751264572,6.06937,1811.8,1811.7,6.16]
[1743751265297,6.50357,1811.8,1811.7,6.16]
[1743751265497,11.257752,1811.8,1811.7,6.16]
[1743751265675,8.52028,1811.5,1811.4,6.16]
[1743751265996,6.07062,1811.4,1811.2,6.16]
[1743751266303,11.59138,1811.4,1811.2,6.16]
[1743751266486,0.55,1811.4,1811.2,11.73639639]
[1743751266686,0.55,1811.4,1811.2,6.16]
[1743751267103,5.52089,1811.3,1811.2,6.16]
[1743751267269,6.07089,1811.3,1811.2,6.16]
[1743751272200,6.07089,1811.3,1811.1,0.1]
[1743751272609,12.382678,1811.4,1811.1,0.1]
[1743751272792,0.4342,1811.6,1811.2,0.8221]
[1743751272995,0.77762,1811.6,1811.2,0.8221]
[1743751273203,8.52089,1811.4,1811.2,0.8221]
[1743751273573,6.07089,1811.3,1811.1,0.1]
[1743751273773,6.0712,1811.2,1811.1,0.1]
[1743751274807,0.55,1811.2,1811.1,0.1]
[1743751275314,6.0712,1811.2,1811.1,0.1]
[1743751276907,0.55,1811.2,1811.1,0.1]
[1743751277497,6.0712,1811.2,1811.1,0.1]
[1743751279687,7.31542448,1811.2,1811.1,0.1]
[1743751279889,10.31542448,1811.2,1811.1,0.1]
[1743751287420,12.84055339,1811.2,1811.1,0.1]
[1743751294330,12.83656189,1811.2,1811.1,0.1]
[1743751296011,10.31143298,1811.2,1811.1,0.1]
[1743751296203,9.0672085,1811.2,1811.1,0.1]
[1743751297508,5.51996,1811.7,1811.4,0.7841]
[1743751297829,3.55,1811.5,1811.4,0.7841]
[1743751298201,9.07028,1811.5,1811.4,0.7841]
[1743751298400,6.07093,1811.3,1811.2,0.8267]
[1743751298601,5.5212,1811.2,1811.1,11.612]
[1743751299135,6.0712,1811.2,1811.1,0.1]
[1743751299997,0.55,1811.2,1811.1,0.9263]
[1743751300198,0.55,1811.3,1811.1,0.9263]
[1743751300421,6.0712,1811.2,1811.1,0.9263]
[1743751300734,6.0712,1811.2,1811.1,0.1]
[1743751300940,0.55,1811.2,1811.1,0.1]
[1743751301105,6.0712,1811.2,1811.1,0.1]
[1743751302034,0.55,1811.2,1811.1,0.1]
[1743751303129,5.52102,1811.3,1811.1,0.744801]
[1743751303313,5.5212,1811.2,1811.1,0.744801]
[1743751303515,5.52102,1811.3,1811.1,0.1]
[1743751303836,6.0709,1811.3,1811.1,0.1]
[1743751304424,0.55,1811.3,1811.1,0.1]
[1743751304635,6.07089,1811.3,1811.2,6.16]
[1743751308044,5.52,1811.6,1811.3,0.8263]
[1743751308210,3.0,1811.5,1811.3,2.612937]
[1743751308405,5.51971,1811.7,1811.3,7.36269871]
[1743751308623,5.51969,1811.7,1811.4,6.34673]
[1743751308844,5.51969,1811.7,1811.4,11.86718]
[1743751309042,0.55,1811.8,1811.5,6.706988]
[1743751309243,5.51938,1811.8,1811.6,6.9863]
[1743751309543,8.51907,1811.9,1811.6,6.9863]
[1743751309713,8.51907,1811.9,1811.7,6.16]
[1743751309714,14.0383,1811.9,1811.7,6.16]
[1743751309909,6.06937,1811.8,1811.7,6.16]
[1743751311010,9.06937,1811.8,1811.7,6.16]
[1743751311207,10.82414689,1811.8,1811.7,6.16]
[1743751311411,0.55,1811.4,1811.3,6.9863]
[1743751311716,6.07059,1811.4,1811.3,6.9863]
[1743751312038,0.55,1811.4,1811.3,6.9863]
[1743751314643,6.07019,1811.6,1811.3,14.293747]
[1743751314811,5.52019,1811.6,1811.4,6.16]
[1743751315461,0.55,1811.6,1811.4,6.16]
[1743751315758,6.07001,1811.6,1811.4,6.16]
[1743751315960,11.59019,1811.6,1811.4,6.21520017]
[1743751316129,6.07001,1811.6,1811.4,6.21520017]
[1743751316547,11.59022,1811.6,1811.4,6.16]
[1743751316849,6.07001,1811.6,1811.4,6.16]
[1743751317025,0.55,1811.6,1811.4,6.21520017]
[1743751317230,0.55,1811.6,1811.5,0.8164]
[1743751317430,14.03958,1811.7,1811.5,0.8164]
[1743751317618,8.51973,1811.7,1811.5,0.8164]
[1743751317822,6.06998,1811.6,1811.4,6.16]
[1743751318025,5.52028,1811.5,1811.4,6.9764]
[1743751318560,6.06998,1811.6,1811.4,6.9764]
[1743751319110,0.55,1811.6,1811.4,7.03160017]
[1743751319316,8.51975,1811.7,1811.4,14.35943219]
[1743751319520,3.0,1811.7,1811.4,19.82475202]
[1743751319845,8.51979,1811.7,1811.4,14.30423202]
[1743751320146,5.51979,1811.7,1811.4,14.30423202]
[1743751320367,0.55,1811.8,1811.6,0.8164]
[1743751320518,6.0695,1811.8,1811.6,0.8164]
[1743751321661,11.58902,1811.8,1811.6,0.8164]
[1743751321866,6.0695,1811.8,1811.6,0.8164]
[1743751322364,5.51967,1811.7,1811.6,0.8164]
[1743751322564,5.51967,1811.7,1811.5,6.16]
[1743751323137,5.51998,1811.6,1811.5,6.16]
[1743751323367,6.06998,1811.6,1811.5,6.16]
[1743751323875,5.51967,1811.7,1811.5,6.16]
[1743751324170,0.55,1811.7,1811.5,12.43304711]
[1743751324368,5.51914,1811.9,1811.6,5.51989]
[1743751324555,11.03839,1811.9,1811.7,0.8164]
[1743751324759,6.06914,1811.9,1811.8,6.16]
[1743751326338,6.50334,1811.9,1811.8,6.16]
[1743751326730,8.25806689,1811.9,1811.8,6.16]
[1743751327584,5.51967,1811.7,1811.6,0.00936291]
[1743751327877,8.59479891,1811.7,1811.6,0.00936291]
[1743751330175,0.55,1811.7,1811.6,0.83176291]
[1743751330338,5.5195,1811.8,1811.6,0.83176291]
[1743751330540,5.51913,1811.9,1811.6,6.99176291]
[1743751330739,5.51913,1811.9,1811.7,0.69917629]
[1743751330740,5.51937,1811.8,1811.7,0.69917629]
[1743751330945,11.03841,1811.9,1811.7,0.69917629]
[1743751331271,5.51937,1811.8,1811.7,0.69917629]
[1743751332295,11.03838,1811.9,1811.7,0.69917629]
[1743751332469,0.55,1811.9,1811.7,0.75436742]
[1743751332659,0.55,1811.9,1811.8,0.8224]
[1743751332859,6.06906,1811.9,1811.8,0.8224]
[1743751333189,0.55,1811.9,1811.8,0.8224]
[1743751333395,6.06906,1811.9,1811.8,0.8224]
[1743751333559,0.55,1811.9,1811.8,0.8224]
[1743751333760,6.06906,1811.9,1811.8,6.9824]
[1743751334461,8.51851,1812.1,1811.8,13.20542912]
[1743751334662,5.51884,1812.0,1811.8,7.68615912]
[1743751335080,0.55,1811.9,1811.8,6.9824]
[1743751335303,0.55,1811.9,1811.8,6.16]
[1743751335482,6.06906,1811.9,1811.8,6.16]
[1743751335686,5.51937,1811.8,1811.7,6.16]
[1743751336264,9.79952867,1811.8,1811.7,6.16]
[1743751336464,9.79952867,1811.8,1811.6,0.00936291]
[1743751336465,9.06967,1811.7,1811.6,0.00936291]
[1743751336689,12.81687,1811.7,1811.6,0.00936291]
[1743751336890,9.50387,1811.7,1811.6,0.00936291]
[1743751337580,9.06967,1811.7,1811.6,0.00936291]
[1743751338687,3.55,1811.7,1811.6,0.00936291]
[1743751338997,3.0,1811.7,1811.6,6.16936291]
[1743751339214,8.51951,1811.8,1811.7,0.8224]
[1743751339561,9.06951,1811.8,1811.7,0.8224]
[1743751341315,6.50387,1811.7,1811.6,6.16936291]
[1743751341619,6.06967,1811.7,1811.6,6.16936291]
[1743751346716,6.06967,1811.7,1811.6,6.95186291]
[1743751347399,6.06967,1811.7,1811.6,6.16936291]
[1743751355540,6.50387,1811.7,1811.6,6.16936291]
[1743751355905,14.319207,1811.7,1811.6,0.00936291]
[1743751356120,14.319207,1811.7,1811.6,2.91e-06]
[1743751358728,5.51967,1811.7,1811.6,2.91e-06]
[1743751358925,6.06967,1811.7,1811.6,2.91e-06]
[1743751359129,0.55,1811.7,1811.6,6.16000291]
[1743751359552,5.5195,1811.8,1811.6,6.16000291]
[1743751359553,5.5195,1811.8,1811.7,0.754]
[1743751359759,6.0695,1811.8,1811.7,0.754]
[1743751359928,6.0695,1811.8,1811.6,6.16000291]
[1743751359929,6.06967,1811.7,1811.6,6.16000291]
[1743751360134,5.51967,1811.7,1811.6,6.16000291]
[1743751360700,6.06967,1811.7,1811.6,6.16000291]
[1743751361580,0.4342,1812.3,1811.7,0.754]
[1743751361777,5.51877,1812.0,1811.8,6.16]
[1743751361943,5.51877,1812.0,1811.9,0.754]
[1743751362474,6.06906,1811.9,1811.8,6.16]
[1743751366137,11.03714,1812.1,1811.8,6.8514]
[1743751366571,8.51819,1812.2,1811.9,6.914]
[1743751366874,3.0,1812.2,1812.0,5.57393296]
[1743751367181,5.51815,1812.2,1812.1,6.914]
[1743751367542,6.06815,1812.2,1812.1,6.914]
[1743751370670,0.55,1812.2,1812.1,6.914]
[1743751370876,11.03583,1812.3,1812.1,6.914]
[1743751370877,5.51786,1812.3,1812.1,7.61091816]
[1743751371037,0.55,1812.3,1812.2,6.16]
[1743751371234,8.51759,1812.4,1812.2,6.16]
[1743751371463,5.51785,1812.3,1812.2,6.16]
[1743751371674,6.06785,1812.3,1812.2,6.16]
[1743751372039,7.44305813,1812.3,1812.2,6.16]
[1743751373955,6.06785,1812.3,1812.2,6.16]
[1743751374238,9.06785,1812.3,1812.2,6.16]
[1743751374490,9.50205,1812.3,1812.2,6.16]
[1743751374983,6.06876,1812.0,1811.9,6.9504]
[1743751375884,6.06876,1812.0,1811.9,6.16]
[1743751376072,8.59388891,1812.0,1811.9,6.16]
[1743751376268,10.0051328,1812.0,1811.9,6.16]
[1743751376454,6.06876,1812.0,1811.9,6.16]
[1743751377481,6.06876,1812.0,1811.7,6.1054]
[1743751377482,5.51906,1811.9,1811.8,6.16]
[1743751377642,6.06937,1811.8,1811.6,6.16]
[1743751378142,5.51967,1811.7,1811.6,6.16]
[1743751379980,6.06967,1811.7,1811.6,6.16]
[1743751380688,6.07028,1811.5,1811.4,6.16]
[1743751380987,6.07089,1811.3,1811.2,6.16]
[1743751381144,0.55,1811.3,1811.2,6.16]
[1743751381349,0.55,1811.7,1811.5,0.7574]
[1743751381562,5.51952,1811.8,1811.5,1.385188]
[1743751381814,5.51911,1811.9,1811.5,1.385188]
[1743751381815,5.51909,1811.9,1811.6,0.05519761]
[1743751382037,0.55,1811.8,1811.6,6.16]
[1743751382413,6.06937,1811.8,1811.6,6.16]
[1743751382949,6.06967,1811.7,1811.6,6.16]
[1743751384000,6.05899565,1811.7,1811.6,6.16]
[1743751384200,6.05899565,1811.7,1811.3,6.16]
[1743751384201,6.07059,1811.4,1811.3,6.16]
[1743751385727,6.50479,1811.4,1811.3,6.16]
[1743751387335,0.55,1811.4,1811.3,6.16]
[1743751387631,0.55,1811.4,1811.3,6.9174]
[1743751387928,6.07059,1811.4,1811.3,6.9174]
[1743751389139,5.51979,1811.7,1811.3,13.12993]
[1743751389435,5.51937,1811.8,1811.4,11.79938]
[1743751389733,5.51949,1811.8,1811.6,0.7585]
[1743751389932,6.06998,1811.6,1811.5,11.522]
[1743751390638,0.55,1811.6,1811.5,11.522]
[1743751390941,6.06998,1811.6,1811.5,11.522]
[1743751391233,7.228945,1811.6,1811.5,6.16]
[1743751391437,10.228945,1811.6,1811.5,6.16]
[1743751392646,6.0712,1811.2,1811.1,0.1]
[1743751395527,6.0712,1811.2,1811.1,0.8789]
[1743751396463,0.55,1811.2,1811.1,0.8789]
[1743751396742,0.55,1811.2,1811.1,1.58831172]
[1743751396949,6.0712,1811.2,1811.1,1.58831172]
[1743751397429,0.55,1811.2,1811.1,1.58831172]
[1743751397955,11.04133,1811.4,1811.1,1.58831172]
[1743751398142,5.52099,1811.3,1811.1,1.58831172]
[1743751398453,5.5212,1811.2,1811.1,1.58831172]
[1743751398654,5.5212,1811.2,1811.1,7.0389]
[1743751399252,11.04205,1811.3,1811.1,7.0389]
[1743751399758,5.52099,1811.3,1811.1,7.0389]
[1743751400659,11.0421,1811.3,1811.1,7.0389]
[1743751400861,6.0712,1811.2,1811.1,7.0389]
[1743751401163,6.0712,1811.2,1811.1,6.26]
[1743751403047,6.0712,1811.2,1811.1,0.1]
[1743751403366,7.48293189,1811.2,1811.1,0.1]
[1743751404358,6.0712,1811.2,1811.1,0.1]
[1743751404564,6.0712,1811.2,1811.1,0.8861]
[1743751405864,5.52066,1811.4,1811.1,12.5676]
[1743751406026,5.52108,1811.3,1811.1,7.0461]
[1743751406359,6.0712,1811.2,1811.1,7.0461]
[1743751406763,0.55,1811.2,1811.1,7.0461]
[1743751406951,5.52064,1811.4,1811.1,13.27319459]
[1743751407146,0.55,1811.4,1811.1,18.79460459]